fUSD/lending_fUSD_20260528
["ID","MTS","AMOUNT","RATE_DAILY","PERIOD"]
[423175008,1779904145000,-310.01573632,0.00011382,2]
[423175010,1779904145000,-599.95,0.00011418,2]
[423175011,1779904145000,-1200.0,0.00011442,2]
[423175012,1779904145000,-4515.40827092,0.0001154,2]
[423175013,1779904145000,-3529.72112386,0.00011597,2]
[423175007,1779904145000,-250.0,0.00011382,2]
[423175014,1779904155000,-644.44707614,0.00011597,2]
[423175015,1779904155000,-3773.4137855,0.00011597,2]
[423175016,1779904157000,-5085.67285098,0.00011596,2]
[423175017,1779904173000,-56838.22718,0.00011596,2]
[423175018,1779904173000,-39834.61468,0.00011596,2]
[423175019,1779904184000,-10753.5784189,0.00011596,2]
[423175047,1779904237000,-203.3306501,0.00011496,2]
[423175050,1779904238000,-1000.0,0.00011496,2]
[423175052,1779904238000,-203.33065009,0.00011497,2]
[423175054,1779904238000,-1623.11679656,0.00011497,2]
[423175053,1779904238000,-646.66934991,0.00011497,2]
[423175051,1779904238000,-200.0,0.00011496,2]
[423175055,1779904238000,-363.59021709,0.00011497,2]
[423175057,1779904238000,-1781.42258427,0.00011497,2]
[423175059,1779904238000,-40394.59906708,0.00011497,2]
[423175058,1779904238000,-390.37271931,0.00011497,2]
[423175056,1779904238000,-742.2918,0.00011497,2]
[423175060,1779904238000,-203.33065009,0.00011497,2]
[423175062,1779904238000,-31788.91430801,0.00011596,2]
[423175063,1779904238000,-6151.317334,0.00011596,2]
[423175064,1779904238000,-4214.66483536,0.00011596,2]
[423175115,1779904238000,-1437425.53935627,0.00011597,2]
[423175113,1779904238000,-2898.5953145,0.00011597,2]
[423175109,1779904238000,-2290112.72980699,0.00011596,2]
[423175111,1779904238000,-1000.0,0.00011596,2]
[423175068,1779904238000,-609.8984744,0.00011596,2]
[423175061,1779904238000,-12498.23007278,0.00011497,2]
[423175067,1779904238000,-1728.70844309,0.00011596,2]
[423175066,1779904238000,-515.22929866,0.00011596,2]
[423175069,1779904238000,-431.14113427,0.00011596,2]
[423175065,1779904238000,-51935.30323534,0.00011596,2]
[423175118,1779904238000,-328.70758097,0.00011597,2]
[423175139,1779904239000,-810.73953422,0.00011597,2]
[423175137,1779904239000,-884.14213714,0.00011597,2]
[423175135,1779904239000,-831.57518879,0.00011597,2]
[423175364,1779904240000,-1124.09990662,0.00011697,2]
[423175362,1779904240000,-5000.0,0.00011697,2]
[423175370,1779904240000,-177.37165718,0.000117,2]
[423175356,1779904240000,-3200.0,0.000116,4]
[423175352,1779904240000,-26637.13217152,0.00011597,2]
[423175368,1779904240000,-6500.0,0.000117,4]
[423175366,1779904240000,-2500.0,0.00011697,2]
[423175320,1779904240000,-2090.40897658,0.00011597,2]
[423175301,1779904240000,-24543.82777059,0.00011597,2]
[423175290,1779904240000,-3729.75728392,0.00011597,2]
[423175354,1779904240000,-150.0,0.00011599,2]
[423175358,1779904240000,-2911.951,0.00011696,2]
[423175299,1779904240000,-2718.17,0.00011597,2]
[423175374,1779904240000,-250.0,0.00011736,2]
[423175394,1779904240000,-6699.53,0.00012055,2]
[423175392,1779904240000,-1958.43,0.00012051,2]
[423175390,1779904240000,-163.25,0.00011933,2]
[423175360,1779904240000,-153.042,0.00011696,2]
[423175380,1779904240000,-9800.0,0.000118,4]
[423175388,1779904240000,-152.0,0.00011922,2]
[423175386,1779904240000,-13100.0,0.000119,4]
[423175372,1779904240000,-1856.92405438,0.000117,2]
[423175376,1779904240000,-599.95,0.00011774,2]
[423175382,1779904240000,-33218.9209,0.00011851,2]
[423175384,1779904240000,-2000.0,0.00011851,2]
[423175378,1779904240000,-150.0,0.00011796,2]
[423175396,1779904240000,-8161.0,0.00012108,2]
[423175488,1779904241000,-522.41,0.00013698,2]
[423175480,1779904241000,-500.0,0.00013698,2]
[423175476,1779904241000,-500.0,0.00013698,2]
[423175478,1779904241000,-500.0,0.00013698,2]
[423175459,1779904241000,-500.0,0.00013698,2]
[423175472,1779904241000,-500.0,0.00013698,2]
[423175470,1779904241000,-500.0,0.00013698,2]
[423175468,1779904241000,-500.0,0.00013698,2]
[423175466,1779904241000,-500.0,0.00013698,2]
[423175490,1779904241000,-522.41,0.00013698,2]
[423175462,1779904241000,-423.41298155,0.00013698,2]
[423175474,1779904241000,-500.0,0.00013698,2]
[423175484,1779904241000,-607.5711013,0.00013698,2]
[423175501,1779904241000,-522.41,0.00013698,2]
[423175482,1779904241000,-500.0,0.00013698,2]
[423175492,1779904241000,-522.41,0.00013698,2]
[423175495,1779904241000,-522.41,0.00013698,2]
[423175497,1779904241000,-522.41,0.00013698,2]
[423175499,1779904241000,-522.41,0.00013698,2]
[423175515,1779904241000,-522.41,0.00013698,2]
[423175517,1779904241000,-522.41,0.00013698,2]
[423175509,1779904241000,-522.41,0.00013698,2]
[423175505,1779904241000,-522.41,0.00013698,2]
[423175507,1779904241000,-522.41,0.00013698,2]
[423175511,1779904241000,-522.41,0.00013698,2]
[423175453,1779904241000,-500.0,0.00013698,2]
[423175486,1779904241000,-522.41,0.00013698,2]
[423175455,1779904241000,-500.0,0.00013698,2]
[423175433,1779904241000,-500.0,0.00013698,2]
[423175451,1779904241000,-500.0,0.00013698,2]
[423175398,1779904241000,-599.95,0.00012131,2]
[423175408,1779904241000,-599.95,0.00012845,2]
[423175410,1779904241000,-45942.06253418,0.00012986,2]
[423175400,1779904241000,-224.76,0.00012329,2]
[423175404,1779904241000,-1680.0,0.00012646,2]
[423175406,1779904241000,-255.0,0.00012666,2]
[423175402,1779904241000,-599.95,0.00012488,2]
[423175412,1779904241000,-599.95,0.00013202,2]
[423175414,1779904241000,-500.0,0.00013259,2]
[423175416,1779904241000,-163.25,0.00013259,2]
[423175420,1779904241000,-599.95,0.00013558,2]
[423175418,1779904241000,-500.0,0.00013533,2]
[423175424,1779904241000,-500.0,0.00013698,2]
[423175426,1779904241000,-500.0,0.00013698,2]
[423175520,1779904241000,-522.41,0.00013698,2]
[423175430,1779904241000,-500.0,0.00013698,2]
[423175431,1779904241000,-500.0,0.00013698,2]
[423175422,1779904241000,-171.94830284,0.00013698,2]
[423175428,1779904241000,-500.0,0.00013698,2]
[423175434,1779904241000,-500.0,0.00013698,2]
[423175436,1779904241000,-500.0,0.00013698,2]
[423175445,1779904241000,-500.0,0.00013698,2]
[423175438,1779904241000,-605.25895332,0.00013698,2]
[423175441,1779904241000,-500.0,0.00013698,2]
[423175443,1779904241000,-500.0,0.00013698,2]
[423175447,1779904241000,-500.0,0.00013698,2]
[423175449,1779904241000,-500.0,0.00013698,2]
[423175457,1779904241000,-500.0,0.00013698,2]
[423175522,1779904241000,-522.41,0.00013698,2]
[423175503,1779904241000,-522.41,0.00013698,2]
[423175526,1779904241000,-522.41,0.00013698,2]
[423175592,1779904241000,-500.0,0.00013698,2]
[423175591,1779904241000,-500.0,0.00013698,2]
[423175594,1779904241000,-166.66,0.00013699,2]
[423175593,1779904241000,-500.0,0.00013698,2]
[423175596,1779904241000,-500.0,0.00013807,2]
[423175595,1779904241000,-200.0,0.00013699,2]
[423175599,1779904241000,-2351.0,0.0001391,2]
[423175603,1779904241000,-282.38,0.00014,2]
[423175597,1779904241000,-433.0,0.00013826,2]
[423175601,1779904241000,-166.66,0.00013973,2]
[423175598,1779904241000,-166.66,0.00013836,2]
[423175605,1779904241000,-250.0,0.00014,2]
[423175607,1779904241000,-166.66,0.0001411,2]
[423175609,1779904241000,-166.66,0.00014247,2]
[423175611,1779904241000,-210.69,0.00014257,2]
[423175613,1779904241000,-366.22,0.00014264,2]
[423175627,1779904241000,-210.69,0.0001497,2]
[423175620,1779904241000,-163.25,0.00014585,2]
[423175615,1779904241000,-166.66,0.00014384,2]
[423175629,1779904241000,-500.0,0.00014999,2]
[423175622,1779904241000,-210.69,0.00014613,2]
[423175524,1779904241000,-522.41,0.00013698,2]
[423175624,1779904241000,-223.65823011,0.00014631,2]
[423175631,1779904241000,-374.2529762,0.00014999,2]
[423175633,1779904241000,-175.6,0.00015068,2]
[423175635,1779904241000,-736.0,0.00015102,2]
[423175637,1779904241000,-250.0,0.00015191,2]
[423175589,1779904241000,-500.0,0.00013698,2]
[423175578,1779904241000,-500.0,0.00013698,2]
[423175618,1779904241000,-45942.06253418,0.00014475,2]
[423175583,1779904241000,-500.0,0.00013698,2]
[423175585,1779904241000,-500.0,0.00013698,2]
[423175532,1779904241000,-522.41,0.00013698,2]
[423175530,1779904241000,-522.41,0.00013698,2]
[423175534,1779904241000,-522.61030314,0.00013698,2]
[423175528,1779904241000,-522.41,0.00013698,2]
[423175538,1779904241000,-500.0,0.00013698,2]
[423175540,1779904241000,-500.0,0.00013698,2]
[423175536,1779904241000,-500.0,0.00013698,2]
[423175543,1779904241000,-590.15586571,0.00013698,2]
[423175545,1779904241000,-500.0,0.00013698,2]
[423175547,1779904241000,-500.0,0.00013698,2]
[423175549,1779904241000,-500.0,0.00013698,2]
[423175562,1779904241000,-500.0,0.00013698,2]
[423175554,1779904241000,-500.0,0.00013698,2]
[423175513,1779904241000,-522.41,0.00013698,2]
[423175564,1779904241000,-500.0,0.00013698,2]
[423175582,1779904241000,-500.0,0.00013698,2]
[423175590,1779904241000,-500.0,0.00013698,2]
[423175588,1779904241000,-500.0,0.00013698,2]
[423175580,1779904241000,-488.48,0.00013698,2]
[423175576,1779904241000,-500.0,0.00013698,2]
[423175574,1779904241000,-500.0,0.00013698,2]
[423175571,1779904241000,-500.0,0.00013698,2]
[423175569,1779904241000,-500.0,0.00013698,2]
[423175558,1779904241000,-500.0,0.00013698,2]
[423175560,1779904241000,-500.0,0.00013698,2]
[423175556,1779904241000,-500.0,0.00013698,2]
[423175567,1779904241000,-500.0,0.00013698,2]
[423175551,1779904241000,-500.0,0.00013698,2]
[423175642,1779904242000,-12498.23007276,0.00015269,2]
[423175639,1779904242000,-1261.81,0.00015262,2]
[423175644,1779904242000,-3292.0,0.00015301,2]
[423175648,1779904242000,-210.69,0.00015683,2]
[423175646,1779904242000,-210.69,0.00015326,2]
[423175650,1779904242000,-163.25,0.00015911,2]
[423175653,1779904242000,-26726.78766148,0.00015965,2]
[423175682,1779904243000,-11908.72187271,0.00015965,2]
[423175681,1779904243000,-209.83184258,0.000117,2]
[423175752,1779904244000,-5730.78,0.00015965,2]
[423175788,1779904246000,-223.65823011,0.00016098,2]
[423175786,1779904246000,-300.0,0.00016,2]
[423175785,1779904246000,-1556.63096729,0.00015965,2]
[423175784,1779904246000,-19.1420327,0.00015965,2]
[423175790,1779904246000,-500.0,0.00016192,2]
[423175787,1779904246000,-366.22,0.00016047,2]
[423175789,1779904246000,-453.99205745,0.000161,2]
[423175792,1779904246000,-302.9633123,0.000162,2]
[423175795,1779904246000,-588.42834396,0.00016438,2]
[423175794,1779904246000,-911.13080044,0.00016308,2]
[423175791,1779904246000,-151.02874515,0.000162,2]
[423175793,1779904246000,-109.3766877,0.00016308,2]
[423175875,1779904272000,161.5,9.507e-05,2]
[423175874,1779904272000,161.5,8.451e-05,2]
[423175876,1779904291000,-161.5,0.00010564,2]
[423175878,1779904344000,-161.5,0.0001162,2]
[423175881,1779904432000,305.5675986,0.00010066,2]
[423175880,1779904432000,1694.4324014,0.00010066,2]
[423175883,1779904433000,420.9765352,0.00010046,2]
[423175884,1779904433000,1579.0234648,0.00010046,2]
[423175882,1779904433000,2000.0,0.00010056,2]
[423175885,1779904434000,1147.520669,0.00010036,2]
[423175886,1779904434000,852.479331,0.00010036,2]
[423175888,1779904435000,125.9351972,0.00010026,2]
[423175889,1779904435000,2000.0,0.00010016,2]
[423175887,1779904435000,1874.0648028,0.00010026,2]
[423175891,1779904436000,1226.56283325,0.00010006,2]
[423175890,1779904436000,600.6089366,0.00010006,2]
[423175894,1779904461000,1981.69456565,9.983e-05,2]
[423175893,1779904461000,2726.5441338,9.983e-05,2]
[423175892,1779904461000,1499.98130055,9.983e-05,2]
[423175895,1779904572000,630.9,9.992e-05,2]
[423175899,1779904650000,2000.0,9.996e-05,2]
[423175900,1779904652000,6124.64,9.996e-05,2]
[423175901,1779904723000,500.0,0.0001,2]
[423175902,1779904779000,200.0,9.937e-05,2]
[423175904,1779904822000,165.37704916,9.971e-05,2]
[423175908,1779904869000,170.21,9.879e-05,2]
[423175907,1779904869000,437.45,9.879e-05,2]
[423175911,1779904880000,500.0,9.877e-05,2]
[423175913,1779904903000,700.0,9.877e-05,2]
[423175916,1779904950000,251.23604904,0.0001,2]
[423175919,1779905001000,1156.32,4.92e-05,2]
[423175921,1779905001000,1156.32,5.438e-05,2]
[423175920,1779905001000,1156.32,5.179e-05,2]
[423175922,1779905002000,1156.32,5.697e-05,2]
[423175925,1779905002000,1156.32,6.474e-05,2]
[423175924,1779905002000,1156.32,6.215e-05,2]
[423175923,1779905002000,1156.32,5.956e-05,2]
[423175930,1779905003000,1156.32,7.769e-05,2]
[423175929,1779905003000,1156.32,7.51e-05,2]
[423175928,1779905003000,1156.32,7.251e-05,2]
[423175927,1779905003000,1156.32,6.992e-05,2]
[423175926,1779905003000,1156.32,6.733e-05,2]
[423175932,1779905004000,1156.32,8.287e-05,2]
[423175931,1779905004000,1156.32,8.028e-05,2]
[423175933,1779905005000,1156.32,8.546e-05,2]
[423175934,1779905005000,1156.32,8.805e-05,2]
[423175935,1779905005000,1156.32,9.064e-05,2]
[423175936,1779905005000,1156.32,9.323e-05,2]
[423175937,1779905005000,1156.32,9.582e-05,2]
[423175938,1779905006000,1156.32,9.841e-05,2]
[423175942,1779905077000,1147.70297861,9.971e-05,2]
[423175943,1779905126000,291.3612025,9.971e-05,2]
[423175945,1779905159000,-993.86661188,0.00010021,2]
[423175944,1779905159000,-964.56338812,0.00010021,2]
[423175947,1779905201000,-395.20336322,0.00010071,2]
[423175948,1779905254000,-653.0,0.00010056,2]
[423175949,1779905274000,-416.31,0.00010056,2]
[423175950,1779905328000,-166.67,0.00010132,2]
[423175951,1779905329000,1402.0,9.839e-05,2]
[423175952,1779905341000,1000.0,0.00027542,120]
[423175960,1779905359000,-986.47356376,0.00010657,2]
[423175955,1779905359000,-150.0,0.00010532,2]
[423175957,1779905359000,-185.0,0.00010635,2]
[423175959,1779905359000,-2000.0,0.00010647,2]
[423175956,1779905359000,-4495.95838091,0.00010583,2]
[423175958,1779905359000,-263.40079633,0.00010637,2]
[423175954,1779905359000,-437.45,0.00010428,2]
[423175953,1779905359000,-598.329057,0.00010376,2]
[423175971,1779905360000,-500.0,0.00010679,2]
[423175968,1779905360000,-150.0,0.00010678,2]
[423175969,1779905360000,-500.0,0.00010679,2]
[423175964,1779905360000,-300.0,0.00010663,2]
[423175970,1779905360000,-480.43840348,0.00010679,2]
[423175963,1779905360000,-300.0,0.00010663,2]
[423175967,1779905360000,-2000.0,0.00010677,2]
[423175966,1779905360000,-5723.0,0.00010667,2]
[423175961,1779905360000,-1013.52643624,0.00010657,2]
[423175965,1779905360000,-2000.0,0.00010667,2]
[423175972,1779905360000,-500.0,0.00010679,2]
[423175962,1779905360000,-1200.0,0.00010662,2]
[423175975,1779905360000,-187.98222287,0.00010679,2]
[423175985,1779905360000,-500.0,0.00010679,2]
[423175984,1779905360000,-304.87729486,0.00010679,2]
[423175983,1779905360000,-500.0,0.00010679,2]
[423175982,1779905360000,-500.0,0.00010679,2]
[423175981,1779905360000,-500.0,0.00010679,2]
[423175973,1779905360000,-500.0,0.00010679,2]
[423175979,1779905360000,-500.0,0.00010679,2]
[423175978,1779905360000,-500.0,0.00010679,2]
[423175977,1779905360000,-500.0,0.00010679,2]
[423175976,1779905360000,-380.32,0.00010679,2]
[423175974,1779905360000,-500.0,0.00010679,2]
[423175980,1779905360000,-500.0,0.00010679,2]
[423175986,1779905361000,-500.0,0.00010679,2]
[423175987,1779905361000,-500.0,0.00010679,2]
[423175988,1779905361000,-500.0,0.00010679,2]
[423175989,1779905361000,-500.0,0.00010679,2]
[423175990,1779905361000,-500.0,0.00010679,2]
[423175991,1779905361000,-500.0,0.00010679,2]
[423175992,1779905361000,-500.0,0.00010679,2]
[423175993,1779905361000,-500.0,0.00010679,2]
[423175994,1779905361000,-500.0,0.00010679,2]
[423175995,1779905361000,-500.0,0.00010679,2]
[423175998,1779905361000,-500.0,0.00010679,2]
[423175996,1779905361000,-500.0,0.00010679,2]
[423175999,1779905361000,-500.0,0.00010679,2]
[423176001,1779905361000,-500.0,0.00010679,2]
[423176004,1779905361000,-2000.0,0.00010687,2]
[423176002,1779905361000,-300.0,0.00010679,2]
[423176003,1779905361000,-4465.0,0.0001068,2]
[423176005,1779905361000,-5838.73411952,0.00010689,2]
[423176006,1779905361000,-3870.08053686,0.00010689,2]
[423175997,1779905361000,-500.0,0.00010679,2]
[423176000,1779905361000,-500.0,0.00010679,2]
[423176007,1779905366000,-1136.76423,0.00010689,2]
[423176008,1779905381000,-1143.01540716,0.00010689,2]
[423176009,1779905381000,-796.6919016,0.00010689,2]
[423176010,1779905381000,-273.2204132,0.00010689,2]
[423176011,1779905405000,-315.45,0.00010091,2]
[423176012,1779905429000,152.0,0.00027795,120]
[423176047,1779905432000,-633.44854925,0.00010889,2]
[423176045,1779905432000,-2000.0,0.00010886,2]
[423176041,1779905432000,-325.43777975,0.00010862,2]
[423176044,1779905432000,-1075.03583865,0.00010876,2]
[423176043,1779905432000,-2000.0,0.00010876,2]
[423176042,1779905432000,-2000.0,0.00010866,2]
[423176036,1779905432000,-2000.0,0.00010787,2]
[423176038,1779905432000,-5823.20621993,0.0001084,2]
[423176037,1779905432000,-2000.0,0.00010797,2]
[423176040,1779905432000,-2000.0,0.00010856,2]
[423176034,1779905432000,-1158.7773873,0.00010772,2]
[423176032,1779905432000,-13577.0,0.00010759,2]
[423176035,1779905432000,-2000.0,0.00010777,2]
[423176030,1779905432000,-2000.0,0.00010747,2]
[423176039,1779905432000,-1841.75029018,0.00010846,2]
[423176048,1779905432000,-2000.0,0.00010896,2]
[423176033,1779905432000,-2000.0,0.00010767,2]
[423176031,1779905432000,-2000.0,0.00010757,2]
[423176028,1779905432000,-2000.0,0.00010727,2]
[423176027,1779905432000,-13060.0,0.00010722,2]
[423176026,1779905432000,-2000.0,0.00010717,2]
[423176025,1779905432000,-9398.0,0.0001071,2]
[423176023,1779905432000,-17839.0,0.00010702,2]
[423176022,1779905432000,-4367.0,0.000107,2]
[423176021,1779905432000,-2000.0,0.00010697,2]
[423176020,1779905432000,-500.0,0.00010696,2]
[423176019,1779905432000,-440.63510763,0.00010689,2]
[423176017,1779905432000,-856.49339166,0.00010689,2]
[423176024,1779905432000,-2000.0,0.00010707,2]
[423176018,1779905432000,-1000.0,0.00010689,2]
[423176029,1779905432000,-2000.0,0.00010737,2]
[423176046,1779905432000,-2000.0,0.00010886,2]
[423176082,1779905432000,-170.21,0.00011526,2]
[423176051,1779905432000,-150.0,0.00010959,2]
[423176049,1779905432000,-2000.0,0.00010896,2]
[423176106,1779905432000,-534.06656813,0.00011597,2]
[423176105,1779905432000,-889.73795982,0.00011597,2]
[423176104,1779905432000,-638.55,0.00011597,2]
[423176103,1779905432000,-2162.69994155,0.00011597,2]
[423176102,1779905432000,-4438.00677323,0.00011597,2]
[423176093,1779905432000,-64204.01238258,0.00011597,2]
[423176091,1779905432000,-13129.27922602,0.00011597,2]
[423176089,1779905432000,-24323.04009297,0.00011597,2]
[423176080,1779905432000,-437.45,0.00011526,2]
[423176078,1779905432000,-500.0,0.0001152,2]
[423176074,1779905432000,-194.65393951,0.000115,2]
[423176084,1779905432000,-1146.38298594,0.00011596,3]
[423176076,1779905432000,-500.0,0.00011518,2]
[423176085,1779905432000,-1099.01031239,0.00011596,3]
[423176087,1779905432000,-1099.01031239,0.00011596,3]
[423176072,1779905432000,-8147.27257999,0.000115,2]
[423176050,1779905432000,-150.0,0.00010959,2]
[423176052,1779905432000,-500.0,0.0001097,2]
[423176064,1779905432000,-1124.09990662,0.00011497,2]
[423176062,1779905432000,-40762.32057677,0.00011397,2]
[423176061,1779905432000,-2000.0,0.00011246,2]
[423176054,1779905432000,-250.0,0.00011078,2]
[423176053,1779905432000,-437.45,0.00010977,2]
[423176057,1779905432000,-250.0,0.00011132,2]
[423176056,1779905432000,-250.0,0.000111,2]
[423176059,1779905432000,-500.0,0.00011244,2]
[423176065,1779905432000,-945.05600734,0.00011497,2]
[423176068,1779905432000,-10957.24973466,0.00011497,2]
[423176070,1779905432000,-3200.0,0.000115,4]
[423176055,1779905432000,-500.0,0.000111,2]
[423176155,1779905438000,-1099.80980304,0.00011597,2]
[423176153,1779905438000,-791.61,0.00011597,2]
[423176154,1779905438000,-302278.43642747,0.00011597,2]
[423176156,1779905438000,-613.53842248,0.00011597,2]
[423176160,1779905438000,-2224.31940229,0.00011597,2]
[423176158,1779905438000,-453.03939456,0.00011597,2]
[423176159,1779905438000,-257.47694385,0.00011597,2]
[423176161,1779905438000,-4088.62857,0.00011597,2]
[423176162,1779905438000,-96183.23117522,0.00011597,2]
[423176157,1779905438000,-259.10978555,0.00011597,2]
[423176311,1779905440000,-10539.12318634,0.00011597,2]
[423176319,1779905440000,-5740.96532433,0.00011597,2]
[423176317,1779905440000,-293759.07103495,0.00011597,2]
[423176316,1779905440000,-724.44,0.00011597,2]
[423176314,1779905440000,-500.0,0.00011597,2]
[423176315,1779905440000,-1136.24390472,0.00011597,2]
[423176313,1779905440000,-948.76400807,0.00011597,2]
[423176312,1779905440000,-15023.87514939,0.00011597,2]
[423176318,1779905440000,-69726.95859477,0.00011597,2]
[423176364,1779905443000,-5729.0,0.00011597,2]
[423176368,1779905444000,-2074.66130735,0.00011597,2]
[423176365,1779905444000,-89386.37578572,0.00011597,2]
[423176369,1779905444000,-31349.26102207,0.00011597,2]
[423176366,1779905444000,-10797.62768213,0.00011597,2]
[423176367,1779905444000,-31603.5243,0.00011597,2]
[423176408,1779905446000,-401.65716503,0.00011597,2]
[423176406,1779905446000,-911417.4872745,0.00011597,2]
[423176407,1779905446000,-74700.0,0.00011597,2]
[423176404,1779905446000,-412007.91952042,0.00011597,2]
[423176403,1779905446000,-383.59631098,0.00011597,2]
[423176405,1779905446000,-754270.4700927,0.00011597,2]
[423177325,1779905458000,-10753.5784189,0.00011597,2]
[423177326,1779905477000,152.0,0.00027795,120]
[423177327,1779905488000,-152.0,0.00011574,2]
[423177328,1779905579000,-300.0,0.000115,2]
[423177329,1779905580000,-300.0,0.000115,2]
[423177330,1779905592000,-300.0,0.000115,2]
[423177332,1779905592000,-300.0,0.00011396,2]
[423177333,1779905592000,-300.0,0.00010721,2]
[423177331,1779905592000,-300.0,0.000115,2]
[423177334,1779905604000,-200.0,0.00010721,2]
[423177335,1779905604000,-100.0,0.00010721,2]
[423177345,1779905606000,-19.44618399,0.00010721,2]
[423177343,1779905606000,-500.0,0.00010721,2]
[423177344,1779905606000,-183.82792532,0.00010721,2]
[423177342,1779905606000,-296.72589069,0.00010721,2]
[423177337,1779905606000,-100.0,0.00010721,2]
[423177340,1779905606000,-500.0,0.00010721,2]
[423177339,1779905606000,-500.0,0.00010721,2]
[423177341,1779905606000,-203.27410931,0.00010721,2]
[423177338,1779905606000,-500.0,0.00010721,2]
[423177336,1779905606000,-300.0,0.00010721,2]
[423177346,1779905773000,152.0,0.00027754,120]
[423177348,1779905799000,175.34,5.732e-05,2]
[423177349,1779905799000,175.34,6.034e-05,2]
[423177351,1779905800000,175.34,6.637e-05,2]
[423177353,1779905800000,175.34,7.241e-05,2]
[423177350,1779905800000,175.34,6.335e-05,2]
[423177352,1779905800000,175.34,6.939e-05,2]
[423177357,1779905801000,175.34,8.447e-05,2]
[423177356,1779905801000,175.34,8.146e-05,2]
[423177358,1779905801000,175.34,8.749e-05,2]
[423177355,1779905801000,175.34,7.844e-05,2]
[423177354,1779905801000,175.34,7.542e-05,2]
[423177362,1779905802000,175.34,9.956e-05,2]
[423177360,1779905802000,175.34,9.352e-05,2]
[423177361,1779905802000,175.34,9.654e-05,2]
[423177359,1779905802000,175.34,9.051e-05,2]
[423177371,1779905905000,-166.226,0.00011365,2]
[423177372,1779905905000,-815.46,0.00011365,2]
[423177369,1779905905000,-276.6573136,0.00011282,2]
[423177370,1779905905000,-501.0241842,0.00011283,2]
[423177363,1779905905000,-175.34,0.00010258,2]
[423177366,1779905905000,-175.34,0.00010861,2]
[423177364,1779905905000,-175.34,0.00010559,2]
[423177365,1779905905000,-294.0,0.00010705,2]
[423177373,1779905905000,-203.3306501,0.00011399,2]
[423177368,1779905905000,-151.0,0.000112,2]
[423177374,1779905905000,-175.34,0.00011464,2]
[423177367,1779905905000,-175.34,0.00011163,2]
[423177376,1779905905000,-37235.41872638,0.0001149,2]
[423177375,1779905905000,-150.0,0.0001149,2]
[423177386,1779905905000,-420095.75458862,0.00011596,2]
[423177385,1779905905000,-439.66026418,0.00011596,2]
[423177383,1779905905000,-195.32199409,0.00011516,2]
[423177382,1779905905000,-1200.0,0.00011499,2]
[423177384,1779905905000,-330.0,0.00011589,3]
[423177380,1779905905000,-1400.52537883,0.00011497,2]
[423177379,1779905905000,-33218.9209,0.00011497,2]
[423177378,1779905905000,-2000.0,0.00011497,2]
[423177377,1779905905000,-150.0,0.00011496,2]
[423177381,1779905905000,-300.0,0.00011499,2]
[423177394,1779905912000,-9800.0,0.000117,4]
[423177387,1779905912000,-205.6702184,0.00011595,2]
[423177388,1779905912000,-411.22953255,0.00011595,2]
[423177389,1779905912000,-500.0,0.00011595,2]
[423177390,1779905912000,-478.40101543,0.00011595,2]
[423177391,1779905912000,-500.0,0.00011595,2]
[423177392,1779905912000,-1082079.07101138,0.00011596,2]
[423177393,1779905912000,-6500.0,0.000116,4]
[423177398,1779905912000,-2000.0,0.0001182,2]
[423177396,1779905912000,-199.39128111,0.00011727,7]
[423177397,1779905912000,-13100.0,0.000118,4]
[423177400,1779905912000,-150.0,0.00011988,2]